fUSD/lending_fUSD_20260502
["ID","MTS","AMOUNT","RATE_DAILY","PERIOD"]
[421467013,1777732155000,28221.66011222,0.00010682,2]
[421467039,1777732232000,-151.36785972,0.0002,20]
[421467040,1777732232000,-162.41759262,0.00021357,2]
[421467042,1777732232000,-1097.81,0.00022562,2]
[421467045,1777732232000,-166.66,0.00028729,30]
[421467052,1777732232000,-150.0,0.00029564,7]
[421467046,1777732232000,-506.0,0.00028789,3]
[421467041,1777732232000,-1335.59,0.00022562,2]
[421467044,1777732232000,-506.0,0.00027137,2]
[421467055,1777732232000,-150.0,0.00029564,7]
[421467058,1777732232000,-150.59403796,0.00029564,7]
[421467062,1777732232000,-150.8369207,0.00029564,7]
[421467050,1777732232000,-150.0,0.00029534,2]
[421467043,1777732232000,-506.0,0.00027137,2]
[421467048,1777732232000,-166.66,0.00029334,30]
[421467060,1777732232000,-150.0,0.00029564,7]
[421467038,1777732232000,-250.0,0.00019788,2]
[421467021,1777732232000,-250.0,0.000143,2]
[421467035,1777732232000,-1456.0,0.00016499,2]
[421467020,1777732232000,-300.0,0.00014299,2]
[421467078,1777732232000,-3132.12,0.00030164,2]
[421467022,1777732232000,-229.9672,0.00014704,2]
[421467024,1777732232000,-195.0,0.00014999,2]
[421467025,1777732232000,-154.6860121,0.00014999,2]
[421467026,1777732232000,-1045.3139879,0.00014999,2]
[421467023,1777732232000,-87.01300239,0.00014704,2]
[421467037,1777732232000,-1273.46,0.00018856,2]
[421467028,1777732232000,-1606.18229778,0.000154,2]
[421467029,1777732232000,-300.0,0.0001562,2]
[421467030,1777732232000,-250.0,0.0001562,2]
[421467032,1777732232000,-300.0,0.00015729,2]
[421467031,1777732232000,-250.0,0.00015729,2]
[421467033,1777732232000,-300.0,0.00015729,2]
[421467036,1777732232000,-1549.29,0.00018856,2]
[421467034,1777732232000,-500.0,0.00015729,2]
[421467027,1777732232000,-130830.57286585,0.00015,2]
[421467080,1777732232000,-150.0,0.00030294,7]
[421467056,1777732232000,-150.0,0.00029564,7]
[421467082,1777732232000,-506.0,0.00030441,5]
[421467102,1777732232000,-500.0,0.00031256,21]
[421467106,1777732232000,-150.0,0.00031389,7]
[421467108,1777732232000,-198.7609119,0.00031558,2]
[421467119,1777732232000,-262.98513798,0.000316,2]
[421467121,1777732232000,-262.98513798,0.000316,2]
[421467125,1777732232000,-151.0,0.00031626,7]
[421467115,1777732232000,-32239.8838,0.00031599,2]
[421467112,1777732232000,-4652.3052,0.00031599,2]
[421467117,1777732232000,-262.985138,0.000316,2]
[421467123,1777732232000,-151.0,0.00031626,7]
[421467110,1777732232000,-1006.04721534,0.00031598,2]
[421467127,1777732232000,-151.0,0.00031626,7]
[421467131,1777732232000,-151.0,0.00031626,7]
[421467129,1777732232000,-151.890572,0.00031626,7]
[421467075,1777732232000,-2000.0,0.00029847,2]
[421467104,1777732232000,-152.020797,0.00031382,10]
[421467097,1777732232000,-166.66,0.00031148,30]
[421467114,1777732232000,-75046.18873505,0.00031599,7]
[421467099,1777732232000,-150.0,0.00031207,7]
[421467077,1777732232000,-166.66,0.00029939,30]
[421467083,1777732232000,-214.19732103,0.00030523,2]
[421467079,1777732232000,-183.98,0.00030191,120]
[421467081,1777732232000,-3000.0,0.00030301,5]
[421467064,1777732232000,-150.30850091,0.00029564,7]
[421467066,1777732232000,-150.0,0.00029564,7]
[421467068,1777732232000,-150.0,0.00029564,7]
[421467070,1777732232000,-150.0,0.00029564,7]
[421467076,1777732232000,-150.0,0.00029929,7]
[421467074,1777732232000,-197.68,0.00029599,2]
[421467087,1777732232000,-165.17,0.00030631,2]
[421467093,1777732232000,-150.0,0.00031011,2]
[421467095,1777732232000,-150.0,0.00031024,7]
[421467091,1777732232000,-194.88,0.00030809,2]
[421467085,1777732232000,-166.66,0.00030543,30]
[421467072,1777732232000,-150.0,0.00029564,7]
[421467089,1777732232000,-150.0,0.00030659,7]
[421467174,1777732233000,-150.0,0.00031754,7]
[421467169,1777732233000,-151.0,0.00031726,7]
[421467170,1777732233000,-151.0,0.00031726,7]
[421467168,1777732233000,-151.0,0.00031726,7]
[421467167,1777732233000,-151.0,0.00031726,7]
[421467166,1777732233000,-151.0,0.00031726,7]
[421467172,1777732233000,-274.78,0.00031747,10]
[421467173,1777732233000,-166.66,0.00031753,30]
[421467162,1777732233000,-190.82,0.00031716,10]
[421467171,1777732233000,-228.98,0.00031737,10]
[421467175,1777732233000,-203.10822608,0.00031757,2]
[421467188,1777732233000,-277.632936,0.00031757,7]
[421467177,1777732233000,-500.0,0.00031757,2]
[421467180,1777732233000,-500.0,0.00031757,2]
[421467179,1777732233000,-500.0,0.00031757,2]
[421467182,1777732233000,-500.0,0.00031757,2]
[421467178,1777732233000,-500.0,0.00031757,2]
[421467183,1777732233000,-500.0,0.00031757,2]
[421467186,1777732233000,-277.632936,0.00031757,7]
[421467184,1777732233000,-475.80238508,0.00031757,2]
[421467185,1777732233000,-151.0,0.00031757,7]
[421467187,1777732233000,-277.632936,0.00031757,7]
[421467163,1777732233000,-21784.1231937,0.00031726,2]
[421467176,1777732233000,-398.20815992,0.00031757,2]
[421467164,1777732233000,-10391.6237156,0.00031726,2]
[421467140,1777732233000,-151.0,0.00031626,7]
[421467161,1777732233000,-1318.0,0.00031713,2]
[421467133,1777732233000,-151.0,0.00031626,7]
[421467135,1777732233000,-151.0,0.00031626,7]
[421467145,1777732233000,-98903.5355,0.00031626,2]
[421467146,1777732233000,-500.0,0.00031657,2]
[421467144,1777732233000,-250.523391,0.00031626,7]
[421467147,1777732233000,-394.15034529,0.00031657,2]
[421467141,1777732233000,-250.523391,0.00031626,7]
[421467142,1777732233000,-250.523391,0.00031626,7]
[421467137,1777732233000,-151.0,0.00031626,7]
[421467139,1777732233000,-151.0,0.00031626,7]
[421467143,1777732233000,-250.523391,0.00031626,7]
[421467165,1777732233000,-3158.7691144,0.00031726,2]
[421467151,1777732233000,-5000.0,0.00031658,2]
[421467156,1777732233000,-1869.14170773,0.00031699,2]
[421467148,1777732233000,-500.0,0.00031657,2]
[421467149,1777732233000,-500.0,0.00031657,2]
[421467150,1777732233000,-360.41286979,0.00031657,2]
[421467154,1777732233000,-1343.0,0.00031699,2]
[421467152,1777732233000,-8596.59307038,0.00031658,2]
[421467158,1777732233000,-343.366334,0.00031706,120]
[421467160,1777732233000,-1356.0,0.00031713,2]
[421467157,1777732233000,-269.042993,0.00031706,120]
[421467153,1777732233000,-162.95027893,0.00031658,4]
[421467155,1777732233000,-1760.39097854,0.00031699,2]
[421467159,1777732233000,-151.15709471,0.00031707,2]
[421467189,1777732233000,-277.632936,0.00031757,7]
[421467181,1777732233000,-500.0,0.00031757,2]
[421467193,1777732233000,-356.875806,0.00031757,7]
[421467215,1777732233000,-268.30105216,0.00031758,2]
[421467219,1777732233000,-194.245439,0.00031758,7]
[421467226,1777732233000,-277.632936,0.00031758,7]
[421467224,1777732233000,-277.632936,0.00031758,7]
[421467222,1777732233000,-194.245439,0.00031758,7]
[421467228,1777732233000,-356.875806,0.00031758,7]
[421467231,1777732233000,-356.875806,0.00031758,7]
[421467230,1777732233000,-356.875806,0.00031758,7]
[421467223,1777732233000,-194.245439,0.00031758,7]
[421467233,1777732233000,-151.0,0.00031758,7]
[421467229,1777732233000,-356.875806,0.00031758,7]
[421467220,1777732233000,-194.245439,0.00031758,7]
[421467227,1777732233000,-277.632936,0.00031758,7]
[421467232,1777732233000,-151.0,0.00031758,7]
[421467234,1777732233000,-151.0,0.00031758,7]
[421467239,1777732233000,-250.523391,0.00031758,7]
[421467238,1777732233000,-151.0,0.00031758,7]
[421467235,1777732233000,-151.0,0.00031758,7]
[421467236,1777732233000,-151.0,0.00031758,7]
[421467240,1777732233000,-250.523391,0.00031758,7]
[421467243,1777732233000,-400.0,0.000318,11]
[421467241,1777732233000,-250.523391,0.00031758,7]
[421467242,1777732233000,-250.523391,0.00031758,7]
[421467191,1777732233000,-356.875806,0.00031757,7]
[421467225,1777732233000,-277.632936,0.00031758,7]
[421467216,1777732233000,-194.245439,0.00031758,7]
[421467237,1777732233000,-151.0,0.00031758,7]
[421467213,1777732233000,-151.0,0.00031758,7]
[421467218,1777732233000,-194.245439,0.00031758,7]
[421467190,1777732233000,-356.875806,0.00031757,7]
[421467194,1777732233000,-151.0,0.00031757,7]
[421467192,1777732233000,-356.875806,0.00031757,7]
[421467200,1777732233000,-28573.76572727,0.00031758,2]
[421467195,1777732233000,-151.0,0.00031757,7]
[421467198,1777732233000,-250.523391,0.00031757,7]
[421467196,1777732233000,-250.523391,0.00031757,7]
[421467199,1777732233000,-250.523391,0.00031757,7]
[421467201,1777732233000,-5300.70571517,0.00031758,2]
[421467203,1777732233000,-15158.61043862,0.00031758,2]
[421467208,1777732233000,-151.0,0.00031758,7]
[421467197,1777732233000,-250.523391,0.00031757,7]
[421467205,1777732233000,-335368.41781713,0.00031758,2]
[421467214,1777732233000,-151.0,0.00031758,7]
[421467206,1777732233000,-30186.79891402,0.00031758,2]
[421467217,1777732233000,-194.245439,0.00031758,7]
[421467211,1777732233000,-151.0,0.00031758,7]
[421467212,1777732233000,-151.0,0.00031758,7]
[421467221,1777732233000,-194.245439,0.00031758,7]
[421467207,1777732233000,-3405.17835797,0.00031758,2]
[421467204,1777732233000,-337879.66358243,0.00031758,2]
[421467209,1777732233000,-151.0,0.00031758,7]
[421467202,1777732233000,-8053.07254739,0.00031758,2]
[421467210,1777732233000,-151.0,0.00031758,7]
[421467245,1777732234000,-8596.59307038,0.00031825,2]
[421467244,1777732234000,-1700.99877081,0.000318,5]
[421467246,1777732234000,-230.436276,0.00031843,14]
[421467252,1777732234000,-151.0,0.00031897,2]
[421467249,1777732234000,-1350.0,0.00031897,2]
[421467255,1777732234000,-151.0,0.000319,7]
[421467248,1777732234000,-247.842305,0.00031843,14]
[421467250,1777732234000,-1369.0,0.00031897,2]
[421467247,1777732234000,-910.055191,0.00031843,120]
[421467253,1777732234000,-200.0,0.00031897,2]
[421467261,1777732234000,-269.042993,0.00031948,14]
[421467251,1777732234000,-4945.55889521,0.00031897,2]
[421467256,1777732234000,-952.72355493,0.000319,2]
[421467257,1777732234000,-800.0,0.000319,11]
[421467258,1777732234000,-1946.26647226,0.00031913,2]
[421467259,1777732234000,-190.268822,0.00031915,14]
[421467262,1777732234000,-2469.24173762,0.00031992,2]
[421467260,1777732234000,-230.436276,0.00031915,120]
[421467263,1777732234000,-2012.78354579,0.00031992,2]
[421467264,1777732234000,-2247.63760254,0.00031992,2]
[421467254,1777732234000,-151.0,0.000319,7]
[421467271,1777732238000,-2543.85405914,0.00032,5]
[421467273,1777732238000,-1338.721,0.00032,31]
[421467274,1777732238000,-222.358,0.00032,31]
[421467269,1777732238000,-1980.0,0.00032,2]
[421467272,1777732238000,-7674.2330412,0.00032,5]
[421467275,1777732238000,-239.39863,0.00032,7]
[421467265,1777732238000,-500.0,0.00014199,2]
[421467277,1777732238000,-194.245439,0.00032,7]
[421467270,1777732238000,-461.7417242,0.00032,120]
[421467267,1777732238000,-1297.51098151,0.00031913,2]
[421467268,1777732238000,-1866.93018443,0.00031992,2]
[421467266,1777732238000,-159.02,0.00031716,10]
[421467280,1777732238000,-194.245439,0.00032,7]
[421467279,1777732238000,-194.245439,0.00032,7]
[421467276,1777732238000,-162.03,0.00032,2]
[421467286,1777732238000,-356.875806,0.00032,7]
[421467287,1777732238000,-40.75873894,0.00032,7]
[421467278,1777732238000,-194.245439,0.00032,7]
[421467295,1777732238000,-202.234488,0.00032006,14]
[421467293,1777732238000,-151.0,0.00032,7]
[421467294,1777732238000,-151.0,0.00032,7]
[421467289,1777732238000,-356.875806,0.00032,7]
[421467291,1777732238000,-151.0,0.00032,7]
[421467292,1777732238000,-155.273416,0.00032,7]
[421467290,1777732238000,-151.0,0.00032,7]
[421467285,1777732238000,-356.875806,0.00032,7]
[421467282,1777732238000,-277.632936,0.00032,7]
[421467284,1777732238000,-277.632936,0.00032,7]
[421467281,1777732238000,-277.632936,0.00032,7]
[421467296,1777732238000,-434.89285445,0.00032093,7]
[421467283,1777732238000,-277.632936,0.00032,7]
[421467288,1777732238000,-316.11706706,0.00032,7]
[421467308,1777732241000,-71.10714555,0.00032093,7]
[421467304,1777732241000,-319.545371,0.00031366,120]
[421467307,1777732241000,-151.0,0.00032,2]
[421467310,1777732241000,-380.37857624,0.00032099,15]
[421467306,1777732241000,-784.55269201,0.00031913,2]
[421467305,1777732241000,-80.454629,0.00031913,2]
[421467312,1777732241000,-629.8351323,0.00032143,7]
[421467314,1777732241000,-184.34186812,0.00032152,8]
[421467309,1777732241000,-728.61931429,0.00032099,15]
[421467311,1777732241000,-150.0,0.00032119,7]
[421467313,1777732241000,-255.1441862,0.00032149,2]
[421467316,1777732241000,-1172.69036978,0.00032159,2]
[421467315,1777732241000,-1932.30023714,0.00032159,2]
[421467359,1777732243000,-277.632936,0.00032659,7]
[421467347,1777732243000,-187.095885,0.00032403,7]
[421467350,1777732243000,-3000.0,0.000325,120]
[421467354,1777732243000,-200.0,0.00032613,2]
[421467357,1777732243000,-194.245439,0.00032659,7]
[421467348,1777732243000,-150.0,0.00032484,7]
[421467351,1777732243000,-150.0,0.00032562,2]
[421467358,1777732243000,-194.245439,0.00032659,7]
[421467349,1777732243000,-8596.59307038,0.00032492,2]
[421467352,1777732243000,-952.7235549,0.00032567,2]
[421467337,1777732243000,-151.0,0.00032298,7]
[421467346,1777732243000,-629.88992724,0.00032353,21]
[421467345,1777732243000,-452.0,0.00032339,30]
[421467334,1777732243000,-5491.60246346,0.00032159,2]
[421467344,1777732243000,-8596.59307038,0.00032326,2]
[421467343,1777732243000,-1239.2301,0.00032298,2]
[421467338,1777732243000,-151.0,0.00032298,7]
[421467336,1777732243000,-1998.35,0.00032247,5]
[421467341,1777732243000,-250.523391,0.00032298,7]
[421467339,1777732243000,-250.523391,0.00032298,7]
[421467335,1777732243000,-952.7235549,0.00032233,2]
[421467340,1777732243000,-250.523391,0.00032298,7]
[421467353,1777732243000,-1200.0,0.000326,11]
[421467342,1777732243000,-250.523391,0.00032298,7]
[421467355,1777732243000,-194.245439,0.00032659,7]
[421467368,1777732243000,-151.0,0.00032659,7]
[421467362,1777732243000,-277.632936,0.00032659,7]
[421467382,1777732243000,-1266.0,0.00032802,2]
[421467381,1777732243000,-193.155,0.000328,27]
[421467380,1777732243000,-2100.0,0.000328,11]
[421467383,1777732243000,-465.0,0.00032826,5]
[421467378,1777732243000,-151.13,0.000328,7]
[421467379,1777732243000,-247.38299728,0.000328,2]
[421467377,1777732243000,-162.95027893,0.00032776,6]
[421467375,1777732243000,-2250.39684417,0.00032659,2]
[421467376,1777732243000,-1700.0,0.000327,11]
[421467356,1777732243000,-194.245439,0.00032659,7]
[421467384,1777732243000,-6187.95689262,0.00032826,2]
[421467373,1777732243000,-838.18911135,0.00031913,2]
[421467367,1777732243000,-151.0,0.00032659,7]
[421467369,1777732243000,-151.0,0.00032659,7]
[421467370,1777732243000,-288.675705,0.00032659,7]
[421467374,1777732243000,-3983.53559489,0.00032659,2]
[421467366,1777732243000,-356.875806,0.00032659,7]
[421467371,1777732243000,-208.22,0.00032659,2]
[421467372,1777732243000,-2362.66063132,0.00032659,2]
[421467360,1777732243000,-277.632936,0.00032659,7]
[421467361,1777732243000,-277.632936,0.00032659,7]
[421467363,1777732243000,-356.875806,0.00032659,7]
[421467364,1777732243000,-356.875806,0.00032659,7]
[421467365,1777732243000,-356.875806,0.00032659,7]
[421467392,1777732246000,-258.65430764,0.00032849,30]
[421467391,1777732246000,-2408.63617776,0.00032826,2]
[421467389,1777732246000,-166.81,0.0003188,120]
[421467390,1777732246000,-425.0,0.00032826,30]
[421467393,1777732246000,-150.0,0.00032849,7]
[421467398,1777732246000,-1108.99789053,0.00032874,15]
[421467397,1777732246000,-500.0,0.00032873,5]
[421467400,1777732246000,-38.3698595,0.00032875,2]
[421467396,1777732246000,-150.00000001,0.00032849,7]
[421467399,1777732246000,-150.0,0.00032875,2]
[421467395,1777732246000,-150.0,0.00032849,7]
[421467394,1777732246000,-150.0,0.00032849,7]
[421467405,1777732264000,500.0,0.00026631,120]
[421467407,1777732323000,380.68394909,9.5e-05,4]
[421467408,1777732623000,300.16957862,9.5e-05,4]
[421467411,1777732911000,754.61,0.00030137,120]
[421467412,1777732921000,754.61,0.00030137,120]
[421467413,1777732931000,377.3,0.00030137,120]
[421467415,1777732941000,565.95,0.00030137,120]
[421467416,1777732954000,565.95,0.00030137,120]
[421467417,1777733040000,712.68777362,0.0001,2]
[421467418,1777733149000,-250.0,0.00013,2]
[421467422,1777733149000,-59.21369035,0.00024192,2]
[421467421,1777733149000,-348.21400795,0.000241,2]
[421467419,1777733149000,-160.0,0.00022,2]
[421467420,1777733149000,-250.0,0.0002255,2]
[421467423,1777733187000,195.69,0.00029215,120]
[421467424,1777733232000,247281.214,0.00030136,120]
[421467442,1777733431000,-17562.01,0.00029243,2]
[421467444,1777733431000,-150.0,0.00029564,7]
[421467443,1777733431000,-150.0,0.00029534,2]
[421467441,1777733431000,-300.0,0.00029242,2]
[421467448,1777733431000,-150.0,0.00029564,7]
[421467447,1777733431000,-150.0,0.00029564,7]
[421467459,1777733431000,-404.0,0.00030064,2]
[421467449,1777733431000,-150.0,0.00029564,7]
[421467452,1777733431000,-150.0,0.00029783,7]
[421467463,1777733431000,-1048.0,0.00030146,2]
[421467453,1777733431000,-150.0,0.00029863,2]
[421467455,1777733431000,-5000.0,0.0002994,2]
[421467450,1777733431000,-150.0,0.00029564,7]
[421467446,1777733431000,-150.0,0.00029564,7]
[421467427,1777733431000,-160.0,0.00024173,2]
[421467440,1777733431000,-1200.0,0.00029242,2]
[421467438,1777733431000,-505.0,0.00028739,3]
[421467439,1777733431000,-300.0,0.00029242,2]
[421467437,1777733431000,-212.75,0.00027702,30]
[421467436,1777733431000,-164.68,0.0002754,2]
[421467434,1777733431000,-250.0,0.00026607,2]
[421467435,1777733431000,-505.0,0.00027137,2]
[421467431,1777733431000,-250.0,0.00026594,2]
[421467429,1777733431000,-250.0,0.00024194,2]
[421467451,1777733431000,-196.47,0.00029614,2]
[421467430,1777733431000,-1147.7330585,0.0002421,2]
[421467433,1777733431000,-300.0,0.00026594,30]
[421467432,1777733431000,-300.0,0.00026594,2]
[421467428,1777733431000,-536.0,0.00024177,2]
[421467445,1777733431000,-150.0,0.00029564,7]
[421467461,1777733431000,-2000.0,0.00030146,2]
[421467473,1777733431000,-2495.64,0.00030493,5]
[421467454,1777733431000,-1000.0,0.000299,20]
[421467495,1777733431000,-500.0,0.00030957,2]
[421467494,1777733431000,-500.0,0.00030957,2]
[421467496,1777733431000,-520.5719253,0.00030957,2]
[421467493,1777733431000,-623.6747546,0.00030957,2]
[421467491,1777733431000,-326.48606607,0.00030957,2]
[421467490,1777733431000,-500.0,0.00030957,2]
[421467492,1777733431000,-500.0,0.00030957,2]
[421467488,1777733431000,-795.1,0.00030948,10]
[421467489,1777733431000,-151.0,0.00030955,7]
[421467486,1777733431000,-2600.0,0.000309,11]
[421467485,1777733431000,-150.0,0.00030878,7]
[421467487,1777733431000,-170.09612413,0.00030948,2]
[421467484,1777733431000,-198.7609119,0.0003086,2]
[421467457,1777733431000,-150.0,0.00030002,7]
[421467481,1777733431000,-544.41345996,0.0003086,2]
[421467483,1777733431000,-1960.18223187,0.0003086,2]
[421467478,1777733431000,-7960.59998557,0.0003085,2]
[421467471,1777733431000,-150.0,0.0003044,7]
[421467469,1777733431000,-150.0,0.00030221,7]
[421467467,1777733431000,-9532.7727616,0.0003017,2]
[421467465,1777733431000,-3921.65,0.0003017,2]
[421467470,1777733431000,-505.0,0.00030341,5]
[421467482,1777733431000,-514.68929496,0.0003086,2]
[421467472,1777733431000,-281.67488595,0.00030491,2]
[421467475,1777733431000,-150.0,0.00030659,7]
[421467474,1777733431000,-212.75,0.00030618,30]
[421467477,1777733431000,-1300.0,0.000308,11]
[421467476,1777733431000,-150.0,0.00030659,7]
[421467479,1777733431000,-4685.6093,0.00030858,2]
[421467480,1777733431000,-17808.6689,0.00030858,2]
[421467497,1777733432000,-352.59871478,0.00030957,2]
[421467498,1777733432000,-221.539,0.00030957,27]
[421467502,1777733432000,-151142.41361565,0.00030958,2]
[421467500,1777733432000,-1108.99789053,0.00030957,15]
[421467503,1777733432000,-2223.73825151,0.00030958,2]
[421467504,1777733432000,-2104.67102666,0.00030958,2]
[421467501,1777733432000,-500.0,0.00030957,2]
[421467505,1777733432000,-352.3625822,0.00030958,2]
[421467499,1777733432000,-1253.629,0.00030957,27]
[421467513,1777733437000,-1125.45277055,0.00030958,2]
[421467512,1777733437000,-210.22743797,0.000309,2]
[421467516,1777733440000,-8213.49785305,0.00030958,2]
[421467515,1777733440000,-2511.34373122,0.00030958,2]
[421467539,1777733442000,-328.0755601,0.00030957,2]
[421467538,1777733442000,-500.0,0.00030957,2]
[421467537,1777733442000,-500.0,0.00030957,2]
[421467540,1777733443000,-171.9244399,0.00030957,2]
[421467541,1777733443000,-500.0,0.00030957,2]
[421467543,1777733443000,-510.13958758,0.00030958,2]
[421467544,1777733443000,-874644.50810408,0.00030958,2]
[421467545,1777733443000,-8794.61113628,0.00030958,2]
[421467542,1777733443000,-2790.23352665,0.00030958,2]
[421467552,1777733445000,-16166.71168422,0.00030958,2]
[421467551,1777733445000,-253.41663215,0.00030958,2]
[421467562,1777733446000,-800.0,0.00031058,13]
[421467568,1777733446000,-800.0,0.00031058,13]
[421467567,1777733446000,-800.0,0.00031058,13]
[421467565,1777733446000,-800.0,0.00031058,13]
[421467566,1777733446000,-800.0,0.00031058,13]
[421467564,1777733446000,-800.0,0.00031058,13]
[421467561,1777733446000,-800.0,0.00031058,13]
[421467553,1777733446000,-4670.60698737,0.00030958,2]
[421467559,1777733446000,-800.0,0.00031058,13]
[421467563,1777733446000,-800.0,0.00031058,13]
[421467558,1777733446000,-800.0,0.00031058,13]
[421467556,1777733446000,-150.0,0.00031011,2]
[421467557,1777733446000,-800.0,0.00031058,13]
[421467555,1777733446000,-1558.0,0.0003096,15]
[421467554,1777733446000,-35366.43211083,0.00030958,2]
[421467572,1777733446000,-800.0,0.00031058,13]
[421467560,1777733446000,-800.0,0.00031058,13]
[421467570,1777733446000,-800.0,0.00031058,13]
[421467569,1777733446000,-800.0,0.00031058,13]
[421467573,1777733446000,-800.0,0.00031058,13]
[421467571,1777733446000,-800.0,0.00031058,13]
[421467596,1777733446000,-800.0,0.00031058,13]
[421467594,1777733446000,-800.0,0.00031058,13]
[421467592,1777733446000,-800.0,0.00031058,13]
[421467588,1777733446000,-800.0,0.00031058,13]
[421467586,1777733446000,-800.0,0.00031058,13]
[421467585,1777733446000,-800.0,0.00031058,13]
[421467584,1777733446000,-800.0,0.00031058,13]
[421467583,1777733446000,-800.0,0.00031058,13]
[421467590,1777733446000,-800.0,0.00031058,13]
[421467581,1777733446000,-800.0,0.00031058,13]
[421467579,1777733446000,-800.0,0.00031058,13]
[421467580,1777733446000,-800.0,0.00031058,13]
[421467578,1777733446000,-800.0,0.00031058,13]
[421467574,1777733446000,-800.0,0.00031058,13]
[421467576,1777733446000,-800.0,0.00031058,13]
[421467577,1777733446000,-800.0,0.00031058,13]
[421467582,1777733446000,-800.0,0.00031058,13]
[421467575,1777733446000,-800.0,0.00031058,13]
[421467624,1777733447000,-1960.18223185,0.00031109,2]
[421467623,1777733447000,-514.68929494,0.00031109,2]
[421467621,1777733447000,-549.0,0.00031058,13]
[421467625,1777733447000,-160.0,0.00031156,30]
[421467629,1777733447000,-600.0,0.00031256,21]
[421467622,1777733447000,-150.0,0.00031097,7]
[421467627,1777733447000,-150.0,0.00031207,7]
[421467630,1777733447000,-150.0,0.00031316,7]
[421467620,1777733447000,-800.0,0.00031058,13]
[421467626,1777733447000,-150.0,0.00031207,30]
[421467619,1777733447000,-800.0,0.00031058,13]
[421467604,1777733447000,-800.0,0.00031058,13]
[421467615,1777733447000,-800.0,0.00031058,13]
[421467614,1777733447000,-800.0,0.00031058,13]
[421467612,1777733447000,-800.0,0.00031058,13]
[421467610,1777733447000,-800.0,0.00031058,13]
[421467600,1777733447000,-800.0,0.00031058,13]
[421467608,1777733447000,-800.0,0.00031058,13]
[421467598,1777733447000,-800.0,0.00031058,13]
[421467606,1777733447000,-800.0,0.00031058,13]
[421467602,1777733447000,-800.0,0.00031058,13]
[421467632,1777733447000,-1960.18223185,0.00031359,2]
[421467617,1777733447000,-800.0,0.00031058,13]
[421467631,1777733447000,-514.68929494,0.00031359,2]
[421467628,1777733447000,-1558.0,0.00031234,15]
[421467634,1777733447000,-151.0,0.00031461,7]
[421467633,1777733447000,-544.41345994,0.00031367,2]
[421467656,1777733447000,-791.7158,0.000319,2]
[421467655,1777733447000,-544.41345994,0.00031873,2]
[421467654,1777733447000,-1960.18223185,0.00031858,2]
[421467653,1777733447000,-514.68929494,0.00031858,2]
[421467651,1777733447000,-150.0,0.00031754,7]
[421467650,1777733447000,-150.0,0.00031754,7]
[421467648,1777733447000,-485.198665,0.00031732,120]
[421467649,1777733447000,-195.747573,0.00031745,120]
[421467647,1777733447000,-1680.0,0.00031677,3]
[421467645,1777733447000,-514.68929494,0.00031608,2]
[421467652,1777733447000,-1558.0,0.00031782,15]
[421467644,1777733447000,-618.966147,0.00031546,120]
[421467646,1777733447000,-1960.18223185,0.00031608,2]
[421467643,1777733447000,-218.557966,0.00031546,120]
[421467640,1777733447000,-319.545372,0.00031546,14]
[421467635,1777733447000,-500.0,0.00031463,2]
[421467641,1777733447000,-242.599332,0.00031546,120]
[421467639,1777733447000,-197.097569,0.00031546,120]
[421467638,1777733447000,-219.875968,0.00031546,14]